[Event "XTX Markets London Masters 2024"]
[Site "London"]
[Date "2024.11.29"]
[Round "1.1"]
[White "Sadhwani, Raunak"]
[Black "Zhao, George"]
[Result "1-0"]
[ECO "C02"]
[WhiteElo "2677"]
[BlackElo "2233"]
[Annotator "TA"]
[PlyCount "87"]
[EventDate "2024.11.28"]
[EventType "swiss"]
[EventCountry "ENG"]
[SourceTitle "playchess.com"]
[Source "ChessBase"]
[SourceQuality "1"]
[TimeControl "40/5400+30:1800+30"]

{[%evp 18,87,24,5,24,25,16,0,5,0,65,77,62,58,85,86,105,85,78,90,263,235,241,261,241,160,162,170,159,160,161,156,156,158,159,164,171,171,203,145,171,166,474,534,512,531,558,523,936,847,1038,1007,7484,12183,29968,29968,29977,29978,29981,29982,29986,29987,29987,29988,29988,29989,29990,29991,29991,29992,29992,29993]} 1. e4 {[%emt 0:00:03][%cal Be2e4,Be4e5][%mdl 32]} e6 {[%emt 0:00:24]} 2. d4 {[%emt 0:00:04]} d5 {[%emt 0:00:10]} 3. e5 {[%emt 0:00:02]} c5 {[%emt 0:00:18]} 4. c3 {[%emt 0:00:05]} Nc6 {[%emt 0:00:06]} 5. Nf3 {[%emt 0:00:07]} Bd7 {[%emt 0:00:05]} 6. Be2 {[%emt 0:00:14]} f6 {[%emt 0:00:33]} 7. O-O {[%emt 0:00:07]} fxe5 {[%emt 0:00:14]} 8. Nxe5 {[%emt 0:00:11]} Nxe5 {[%emt 0:00:08]} 9. dxe5 {[%emt 0:00:03]} Qc7 {[%emt 0:00:09]} 10. Re1 {[%emt 0:00:05]} O-O-O {[%emt 0:01:42]} 11. Nd2 {[%emt 0:00:12]} Ne7 {[%emt 0:05:21][%cal Oc8b8]} 12. Nf3 {[%emt 0:01:42]} h6 {[%emt 0:03:23] Repels Ng5. The position is equal.} 13. b4 {[%emt 0:00:39]} c4 {[%emt 0:00:42]} (13... Nc6 $11) 14. Nd4 $14 {[%emt 0:10:53] And now Bg4 would win.} Nc6 {[%emt 0:06:22]} 15. Nxc6 {[%emt 0:00:31]} Qxc6 {[%emt 0:02:46]} 16. Be3 {[%emt 0:00:13][%cal Od1d4]} Kb8 {[%emt 0:02:20]} 17. a4 {[%emt 0:00:10]} g5 {[%emt 0:01:07]} 18. Qd4 {[%emt 0:01:13]} b6 $2 {[%emt 0:02:01] This costs Black the game.} (18... Qa6 $16) 19. a5 $18 {[%emt 0:03:40]} Kb7 {[%emt 0:00:21]} 20. axb6 {[%emt 0:06:10]} axb6 {[%emt 0:00:19]} 21. Ra2 {[%emt 0:10:33] [#] Hoping for Rea1.} Be7 {[%emt 0:01:54]} 22. Rea1 {[%emt 0:01:56]} Ra8 {[%emt 0:01:15] Inhibits Ra7+.} 23. Rxa8 {[%emt 0:00:11]} Rxa8 {[%emt 0:00:04]} 24. Rxa8 {[%emt 0:00:05]} Kxa8 {[%emt 0:00:05]} 25. Qxb6 {[%emt 0:00:04] White is more active.} Qxb6 {[%emt 0:01:15]} 26. Bxb6 $16 {[%emt 0:00:05][%mdl 4096] Endgame. KBB-KBB} Kb7 {[%emt 0:00:26]} 27. Be3 {[%emt 0:00:07]} Bd8 {[%emt 0:03:58]} 28. f3 {[%emt 0:00:06]} Bc7 {[%emt 0:01:13]} 29. Bd4 {[%emt 0:01:16]} Bb6 $2 {[%emt 0:00:33]} (29... Be8 30. Kf2 Bd8) 30. Bxb6 $18 {[%emt 0:00:08]} Kxb6 {[%emt 0:00:04] KB-KB} 31. Kf2 {[%emt 0:00:03]} Kb5 {[%emt 0:02:48][%cal Od5d4]} 32. Ke3 {[%emt 0:00:33]} Ka4 {[%emt 0:01:14]} 33. g3 {[%emt 0:00:34][%cal Bg2g3,Bg3h4,Bh4h5,Bh5h6,Bh6h7][%mdl 32]} Kb3 {[%emt 0:00:22]} 34. Kd4 {[%emt 0:00:05]} h5 {[%emt 0:02:36]} 35. h4 {[%emt 0:00:48]} gxh4 {[%emt 0:00:33]} 36. gxh4 {[%emt 0:00:10] White mates.} Kc2 {[%emt 0:00:25]} 37. f4 {[%emt 0:00:08]} Be8 {[%emt 0:00:02] [#]} 38. b5 $1 {[%emt 0:00:16][%mdl 512]} Bxb5 {[%emt 0:00:18]} (38... Bg6 39. b6) 39. Bxh5 {[%emt 0:00:04]} Kd2 {[%emt 0:00:45]} 40. Bg6 {[%emt 0:00:08]} Ke2 {[%emt 0:00:23]} 41. h5 {[%emt 0:30:05]} Kf3 {[%emt 0:30:11]} 42. h6 {[%emt 0:00:07]} Kxf4 {[%emt 0:00:03]} 43. h7 {[%emt 0:00:04]} Kg5 {[%emt 0:00:08]} 44. Bf7 {[%emt 0:00:08] Weighted Error Value: White=0.07 (flawless) /Black=0.40.  Loses game:     	---       	Black=1      Mistake:       	---       	Black=2      Inaccurate:     	White=1     	Black=2      OK:         	White=11    	Black=6      Best:        	White=4     	---} 1-0

[Event "XTX Markets London Masters 2024"]
[Site "London"]
[Date "2024.11.29"]
[Round "1.2"]
[White "Van Zyl-Rudd, Jack"]
[Black "Smirin, Ilia"]
[Result "1-0"]
[ECO "E94"]
[WhiteElo "2268"]
[BlackElo "2574"]
[Annotator "TA"]
[PlyCount "95"]
[EventDate "2024.11.28"]
[EventType "swiss"]
[EventCountry "ENG"]
[SourceTitle "playchess.com"]
[Source "ChessBase"]
[SourceQuality "1"]
[TimeControl "40/5400+30:1800+30"]

{[%evp 36,95,67,31,36,0,0,-69,-47,-37,-47,-189,-119,-109,0,0,263,261,322,337,304,316,318,320,238,70,101,64,63,56,44,0,98,77,68,18,11,0,0,-8,43,0,0,0,389,364,300,234,531,518,900,978,827,980,983,954,1275,1266,29989,29990,29990,29991]} 1. d4 {[%emt 0:00:01]} Nf6 {[%emt 0:00:13]} 2. c4 {[%emt 0:00:04]} g6 {[%emt 0:00:38]} 3. Nc3 {[%emt 0:00:05]} Bg7 {[%emt 0:00:42]} 4. e4 {[%emt 0:00:06]} d6 {[%emt 0:00:03]} 5. Nf3 {[%emt 0:00:08]} O-O {[%emt 0:00:07]} 6. Be2 {[%emt 0:00:03]} Nbd7 {[%emt 0:00:10]} 7. O-O {[%emt 0:00:06]} e5 {[%emt 0:00:05]} 8. Be3 {[%emt 0:00:08]} Re8 {[%emt 0:00:35]} 9. d5 {[%emt 0:00:11]} Nh5 {[%emt 0:00:23]} 10. Re1 {[%emt 0:00:22]} Bf8 {[%emt 0:03:17]} 11. b4 {[%emt 0:01:29]} Ng7 {[%emt 0:01:20]} 12. Nd2 {[%emt 0:00:26]} f5 {[%emt 0:00:33]} 13. f3 {[%emt 0:00:06]} Be7 {[%emt 0:02:05]} 14. Nb3 {[%emt 0:00:40]} Bh4 {[%emt 0:01:46]} 15. Rf1 {[%emt 0:00:32]} f4 {[%emt 0:00:24]} 16. Bf2 {[%emt 0:00:09]} Bxf2+ {[%emt 0:01:19]} 17. Rxf2 {[%emt 0:00:06]} g5 {[%emt 0:00:09]} 18. c5 {[%emt 0:00:26]} Nf6 {[%emt 0:00:17]} 19. Na5 {[%emt 0:01:15]} Kh8 {[%emt 0:04:48]} 20. Nc4 {[%emt 0:01:07]} Rg8 {[%emt 0:00:19]} 21. g4 {[%emt 0:00:59]} (21. a4 $11) 21... fxg3 $1 $15 {[%emt 0:01:58]} 22. hxg3 {[%emt 0:00:07]} Ngh5 {[%emt 0:00:04]} 23. Kg2 {[%emt 0:01:50]} (23. cxd6 $15 cxd6 24. g4) 23... g4 {[%emt 0:15:40]} (23... Nxg3 $1 $19 24. Kxg3 Nh5+ 25. Kg2 (25. Kh2 $2 g4 $19) 25... g4 (25... Nf4+ 26. Kh1 $11) 26. fxg4 Qh4) 24. f4 $17 {[%emt 0:00:51] [#]} Nxg3 {[%emt 0:02:14]} (24... exf4 $1 $17 {[%mdl 512] Hoping for ...f3+.} 25. Rxf4 (25. gxf4 g3 $17) 25... b5 (25... Nxf4+ 26. gxf4 b5 27. Nxb5 $11) 26. Nxb5 Nxf4+ 27. gxf4 dxc5 (27... Nxe4 28. Qd4+ Qf6 29. Qxe4 $16) 28. bxc5 Qe7 (28... Nxe4 $2 29. Qd4+ Nf6 30. Nxc7 $18)) 25. fxe5 $11 {[%emt 0:01:38]} Nfxe4 $2 {[%emt 0:01:29][%mdl 8192] [#]} (25... Ngxe4 $11 {and Black has nothing to worry.} 26. Nxe4 Nxe4) 26. exd6 $1 $18 {[%emt 0:02:11]} Nxf2 {[%emt 0:01:01]} (26... Nxc3 $2 27. Qd4+ Rg7 28. Kxg3 $18 (28. Qxc3 Ne4 $11)) 27. Qd4+ {[%emt 0:00:22]} Rg7 {[%emt 0:00:07]} 28. Kxg3 {[%emt 0:00:06]} Nh3 {[%emt 0:01:33]} 29. Rf1 {[%emt 0:00:24]} Ng5 {[%emt 0:03:27]} 30. dxc7 $2 {[%emt 0:01:10]} (30. Bxg4 $2 Bxg4 31. dxc7 (31. Qxg4 $2 Nf7 $19) 31... Qxc7+ 32. d6 Qd8 $19 (32... Ne6 $2 33. Qf6 $19)) (30. Rf4 $18) 30... Qxc7+ $14 {[%emt 0:00:09]} 31. d6 {[%emt 0:01:56]} Qd8 {[%emt 0:00:15]} 32. Ne5 {[%emt 0:02:01]} (32. Bxg4 $2 Bxg4 33. Rf6 (33. Qxg4 $2 Ne4+ 34. Nxe4 Rxg4+ 35. Kxg4 Qg8+ 36. Ng5 Qxc4+ $19) 33... Be6 $19 (33... Ne6 $2 34. Qe5 $19)) 32... Be6 $1 {[%emt 0:00:52]} 33. Rf4 {[%emt 0:02:15]} (33. Nxg4 a5 34. b5 Bd7 $15) (33. Bxg4 Bxg4 34. Nxg4 (34. Qxg4 $2 Qe8 $19) 34... Qe8 $17) 33... Nf3 {[%emt 0:02:57]} (33... Bg8 $1 $11 {keeps the balance.} 34. Qe3 (34. Kxg4 $2 Ne6+ $19) (34. Bxg4 a5 $14) (34. Rxg4 Be6 $15) 34... a6) 34. Bxf3 $16 {[%emt 0:00:07]} gxf3+ {[%emt 0:00:10]} 35. Kxf3 {[%emt 0:00:08]} Qg5 {[%emt 0:01:01]} 36. Ne2 {[%emt 0:00:53]} Kg8 {[%emt 0:20:16]} 37. b5 {[%emt 0:01:41]} Qh5+ {[%emt 0:04:40]} ({Better is} 37... a6 $1 $11 38. b6 Re8) 38. Ke3 {[%emt 0:00:39]} Re8 {[%emt 0:08:40]} 39. Kd2 {[%emt 0:00:54]} Bxa2 $2 {[%emt 0:15:20][%mdl 8192] [#]} (39... Bd7 $1 $11 {and Black is okay.} 40. Re4 Bxb5) 40. Re4 $1 $18 {[%emt 0:03:02]} (40. d7 Rxd7 41. Qxd7 (41. Nxd7 $2 Qxe2+ 42. Kc3 Re3+ $19) 41... Qxe5 (41... Rxe5 42. Rg4+ Kf8 43. Qd6+ Kf7 44. Qd7+ Kf8 45. Qd8+ Kf7 46. Rf4+ Rf5 47. Qd7+ Kg6 48. Qd3 $14) 42. Rg4+ Kf8 43. Rf4+ Kg8 44. Rg4+ Kf8 45. Rf4+ Kg8 $15) 40... Qh6+ {[%emt 0:03:19]} 41. Kc3 {[%emt 0:30:52]} Qe6 $2 {[%emt 0:35:04]} (41... Be6 {might work better.} 42. c6 bxc6) 42. d7 $18 {[%emt 0:01:33]} Rd8 {[%emt 0:00:42]} (42... Rxd7 $142 43. Nxd7 Qb3+ 44. Kd2 Rxe4 45. Nf6+ (45. Qxe4 Qb2+ 46. Ke1 Qb1+ 47. Qxb1 Bxb1 $18) 45... Kf7 46. Nxe4 (46. Qxe4 Qb2+ 47. Ke3 Qxf6 $11) 46... Qd5 47. Nd6+ Ke7) 43. c6 $18 {[%emt 0:00:32]} Qb3+ {[%emt 0:00:00]} 44. Kd2 {[%emt 0:00:00]} Qxb5 {[%emt 0:00:00]} 45. Ng4 {[%emt 0:00:00]} ({And not} 45. Qxa7 Bb1 46. Re3 bxc6 $17) 45... Qg5+ {[%emt 0:00:00]} 46. Kc2 {[%emt 0:00:00]} Bf7 {[%emt 0:00:00]} 47. Nf6+ {[%emt 0:00:00]} Kh8 {[%emt 0:00:00]} 48. c7 {[%emt 0:00:00]} (48. cxb7 Qb5 49. Qb4 (49. Qxa7 $2 {is the wrong capture.} Bg6 $19) 49... Qc6+ 50. Kd1 Qxf6 $14) 1-0

[Event "XTX Markets London Masters 2024"]
[Site "London"]
[Date "2024.11.29"]
[Round "1.3"]
[White "Zhang, Pengxiang"]
[Black "Venkataramanan, T.S."]
[Result "1-0"]
[ECO "C54"]
[WhiteElo "2567"]
[BlackElo "2227"]
[Annotator "TA"]
[PlyCount "51"]
[EventDate "2024.11.28"]
[EventType "swiss"]
[EventCountry "ENG"]
[SourceTitle "playchess.com"]
[Source "ChessBase"]
[SourceQuality "1"]
[TimeControl "40/5400+30:1800+30"]

{[%evp 13,51,16,20,22,25,18,27,21,29,14,56,9,15,11,0,0,0,12,2,15,53,56,71,69,113,120,119,73,108,89,127,138,442,433,842,880,871,868,2013,1961]} 1. e4 {[%emt 0:00:10]} e5 {[%emt 0:00:18]} 2. Nf3 {[%emt 0:00:07]} Nc6 {[%emt 0:00:19]} 3. Bc4 {[%emt 0:00:35]} Bc5 {[%emt 0:00:31]} 4. c3 {[%emt 0:00:15]} Nf6 {[%emt 0:00:29]} 5. d3 {[%emt 0:00:06]} d6 {[%emt 0:00:23]} 6. O-O {[%emt 0:01:15]} O-O {[%emt 0:01:30]} 7. a4 {[%emt 0:03:05]} a6 {[%emt 0:00:30]} 8. Re1 {[%emt 0:01:10]} Ba7 {[%emt 0:01:28][%cal Ob7b5]} 9. h3 {[%emt 0:01:35]} Be6 {[%emt 0:02:05]} 10. Nbd2 {[%emt 0:03:58] White has an edge.} Qd7 {[%emt 0:04:45][%cal Oe6h3]} 11. Nf1 {[%emt 0:21:54]} b5 {[%emt 0:18:17]} 12. Bb3 {[%emt 0:06:12]} (12. Bxe6 $14 fxe6 13. Ng3) 12... b4 {[%emt 0:02:44]} 13. Bg5 {[%emt 0:24:51]} Bxb3 {[%emt 0:15:27]} 14. Qxb3 {[%emt 0:32:17]} Qe6 {[%emt 0:00:21]} 15. Qd1 {[%emt 0:00:00]} bxc3 {[%emt 0:07:09]} 16. bxc3 {[%emt 0:00:00]} Nd7 {[%emt 0:10:16]} 17. d4 {[%emt 0:00:00] [#] d5 is the strong threat.} Qg6 {[%emt 0:04:08]} 18. Be3 {[%emt 0:00:00]} exd4 {[%emt 0:00:38]} ({Reject} 18... Qxe4 $6 19. d5 Ne7 (19... Bxe3 $2 20. Rxe3 Qc4 21. dxc6 $18) 20. Bxa7 Qxd5 21. Be3 $16) 19. cxd4 {[%emt 0:00:00]} d5 {[%emt 0:00:26]} 20. e5 {[%emt 0:00:00]} ({White should try} 20. exd5 Nb4 21. Rc1) 20... Nb4 {[%emt 0:03:15]} 21. Rc1 {[%emt 0:00:00] Repels Nc2} (21. Ng3 {simplifies} Qd3 22. Rc1 Qxd1 23. Rexd1 Bb6 24. Nf5) 21... Rfc8 {[%emt 0:01:35]} 22. Nh4 {[%emt 0:00:00]} Qe4 {[%emt 0:03:26][%mdl 8192] Loses the game.} (22... Qe6 $16) 23. Qh5 $18 {[%emt 0:00:00] Threatens to win with Ng3. White is clearly winning.} Nc2 {[%emt 0:05:09]} (23... Bxd4 $142 24. Bxd4 (24. Bd2 Bxf2+ 25. Kxf2 Nd3+ 26. Kg1 Nxe1 $18) 24... Qxd4) 24. Ng3 {[%emt 0:00:00]} Qd3 {[%emt 0:00:49] [#]} 25. Nhf5 $1 {[%emt 0:00:47]} g6 {[%emt 0:06:28]} (25... Bxd4 26. Red1) 26. Qh6 {[%emt 0:00:52] Weighted Error Value: White=0.11 (very precise) /Black=0.38.  Loses game:     	---       	Black=1      Mistake:       	White=2     	Black=1      Inaccurate:     	---       	Black=5      OK:         	White=3     	Black=4      Best:        	White=1     	---} 1-0

[Event "XTX Markets London Masters 2024"]
[Site "London"]
[Date "2024.11.29"]
[Round "1.4"]
[White "Kalavannan, Koby"]
[Black "Petrov, Martin"]
[Result "0-1"]
[ECO "A05"]
[WhiteElo "2225"]
[BlackElo "2548"]
[Annotator "RC"]
[PlyCount "128"]
[EventDate "2024.11.28"]
[EventType "swiss"]
[EventCountry "ENG"]
[SourceTitle "playchess.com"]
[Source "ChessBase"]
[SourceQuality "1"]
[TimeControl "40/5400+30:1800+30"]

1. Nf3 {[%emt 0:05:17]} Nf6 {[%emt 1:31:00]} 2. g3 {[%emt 0:00:20]} b5 {[%emt 0:00:00]} 3. Bg2 {[%emt 0:01:08]} Bb7 {[%emt 0:00:00]} 4. O-O {[%emt 0:04:20]} e6 {[%emt 0:00:00]} 5. d3 {[%emt 0:01:05]} c5 {[%emt 0:00:00]} 6. a4 {[%emt 0:01:37]} b4 {[%emt 0:00:00]} 7. e4 {[%emt 0:15:18]} d6 {[%emt 0:00:00]} 8. Nbd2 {[%emt 0:02:04]} Be7 {[%emt 0:00:00]} 9. e5 {[%emt 0:07:51]} dxe5 {[%emt 0:00:00]} 10. Nxe5 {[%emt 0:00:17]} Bxg2 {[%emt 0:00:00]} 11. Kxg2 {[%emt 0:00:02]} Qd5+ {[%emt 0:00:00]} 12. Qf3 {[%emt 0:00:16]} Qxf3+ {[%emt 0:00:00]} 13. Ndxf3 {[%emt 0:03:25]} Nd5 {[%emt 0:00:00]} 14. b3 {[%emt 0:02:56]} f6 {[%emt 0:00:00]} 15. Nc4 {[%emt 0:00:16]} Nc6 {[%emt 0:00:00]} 16. Bb2 {[%emt 0:00:48]} Kf7 {[%emt 0:00:00]} 17. Rae1 {[%emt 0:04:01]} g5 {[%emt 0:00:00]} 18. Ne3 {[%emt 0:17:28]} h5 {[%emt 0:00:00]} 19. h4 {[%emt 0:02:19]} g4 {[%emt 0:00:00]} 20. Nd2 {[%emt 0:29:42]} Rhg8 {[%emt 0:00:00]} 21. Ndc4 {[%emt 0:00:00]} Rad8 {[%emt 0:00:00]} 22. Kh2 {[%emt 0:00:00]} Nd4 {[%emt 0:10:30]} 23. Bxd4 {[%emt 0:00:00]} cxd4 {[%emt 0:00:00]} 24. Nd1 {[%emt 0:00:00]} e5 {[%emt 0:00:00]} 25. f3 {[%emt 0:00:00]} gxf3 {[%emt 0:00:00]} 26. Rxf3 {[%emt 0:00:00]} Ke6 {[%emt 0:00:00]} 27. Nf2 {[%emt 0:00:00]} Rg6 {[%emt 0:00:00]} 28. Ne4 {[%emt 0:00:00]} Rdg8 {[%emt 0:00:00]} 29. Ng5+ {[%emt 0:00:00]} Kd7 {[%emt 0:00:00]} 30. Ne4 {[%emt 0:00:00]} Ke6 {[%emt 0:00:00]} 31. Ng5+ {[%emt 0:00:00]} Kd7 {[%emt 0:00:00]} 32. Ne4 {[%emt 0:00:00]} Nc3 {[%emt 0:00:00]} 33. Nf2 {[%emt 0:01:51]} Bd8 {[%emt 0:00:00]} 34. Ne4 {[%emt 0:00:42]} Be7 {[%emt 0:00:00]} 35. Nf2 {[%emt 0:00:02]} Bd8 {[%emt 0:00:00]} 36. Ne4 {[%emt 0:00:02]} Ke6 {[%emt 0:00:00]} 37. Nc5+ {[%emt 0:01:19]} Kd5 {[%emt 0:00:00]} 38. Ne4 {[%emt 0:03:21]} Be7 {[%emt 0:02:04]} 39. Nf2 {[%emt 0:01:20]} Bf8 {[%emt 0:01:45]} 40. Ne4 {[%emt 0:00:36]} Be7 {[%emt 0:03:20]} 41. Ncd2 {[%emt 0:05:28]} Ke6 {[%emt 0:04:23]} 42. Nc4 {[%emt 0:06:22]} Nxe4 {[%emt 0:07:23]} 43. Rxe4 {[%emt 0:03:51]} Bd8 {[%emt 0:01:11]} 44. Re2 {[%emt 0:02:47]} Bc7 {[%emt 0:00:38]} 45. Nd2 {[%emt 0:00:46]} f5 {[%emt 0:00:58]} 46. Nf1 {[%emt 0:07:40]} Rg4 {[%emt 0:00:39]} 47. Ref2 {[%emt 0:02:06]} f4 {[%emt 0:01:54]} 48. gxf4 {[%emt 0:02:06]} e4 {[%emt 0:00:41]} 49. Rg3 {[%emt 0:01:03]} e3 {[%emt 0:00:37]} 50. Rxg4 {[%emt 0:02:35]} Rxg4 {[%emt 0:00:06]} 51. Re2 {[%emt 0:01:01]} Bxf4+ {[%emt 0:00:05]} 52. Kh1 {[%emt 0:00:23]} Kf5 {[%emt 0:00:45]} 53. Re1 {[%emt 0:00:28]} Rxh4+ {[%emt 0:00:31]} 54. Kg2 {[%emt 0:00:19]} Rg4+ {[%emt 0:01:13]} 55. Kh1 {[%emt 0:00:26]} h4 {[%emt 0:00:41]} 56. Re2 {[%emt 0:00:21]} h3 {[%emt 0:00:07]} 57. Nh2 {[%emt 0:00:16]} Bxh2 {[%emt 0:02:26]} 58. Kxh2 {[%emt 0:00:53]} Rg2+ {[%emt 0:00:24]} 59. Rxg2 {[%emt 0:00:05]} hxg2 {[%emt 0:00:04]} 60. Kxg2 {[%emt 0:00:04]} Kg4 {[%emt 0:00:06]} 61. a5 {[%emt 0:01:07]} a6 {[%emt 0:00:06]} 62. Kg1 {[%emt 0:00:07]} Kf3 {[%emt 0:00:22]} 63. Kf1 {[%emt 0:00:03]} e2+ {[%emt 0:00:07]} 64. Ke1 {[%emt 0:00:02]} Ke3 {[%emt 0:00:03]} 0-1

[Event "XTX Markets London Masters 2024"]
[Site "London"]
[Date "2024.11.29"]
[Round "1.5"]
[White "Fier, Alexandr"]
[Black "Li, Jack"]
[Result "1-0"]
[ECO "B40"]
[WhiteElo "2544"]
[BlackElo "1717"]
[Annotator "TA"]
[PlyCount "59"]
[EventDate "2024.11.28"]
[EventType "swiss"]
[EventCountry "ENG"]
[SourceTitle "playchess.com"]
[Source "ChessBase"]
[SourceQuality "1"]
[TimeControl "40/5400+30:1800+30"]

{[%evp 9,59,20,26,11,14,4,4,21,44,61,52,47,53,36,30,41,92,104,119,113,131,114,160,155,236,210,259,269,220,207,319,191,316,154,164,127,396,346,622,614,663,651,1349,1325,1469,1543,1657,1689,1694,1717,2281,1895]} 1. e4 {[%emt 0:00:08]} c5 {[%emt 0:00:10]} 2. Nf3 {[%emt 0:00:05]} e6 {[%emt 0:00:05]} 3. b3 {[%emt 0:00:04]} a6 {[%emt 0:03:06]} 4. Bb2 {[%emt 0:00:07]} d5 {[%emt 0:03:28]} 5. exd5 {[%emt 0:00:06]} exd5 {[%emt 0:00:04]} 6. Qe2+ {[%emt 0:00:06]} Be6 {[%emt 0:11:30]} 7. g3 {[%emt 0:00:05]} Nc6 {[%emt 0:06:40]} 8. Bg2 {[%emt 0:00:06] The position is equal.} Qd7 {[%emt 0:05:55]} 9. Ng5 {[%emt 0:01:49]} O-O-O {[%emt 0:01:56]} 10. Nxe6 {[%emt 0:00:07]} fxe6 {[%emt 0:06:34]} 11. d3 {[%emt 0:03:31]} Nf6 {[%emt 0:08:25]} 12. Nd2 {[%emt 0:00:06]} e5 {[%emt 0:10:45]} 13. c4 $16 {[%emt 0:03:26]} (13. Bxe5 $2 Nxe5 14. O-O (14. Qxe5 $2 Re8 $19) 14... Re8 $19) 13... d4 {[%emt 0:04:27]} 14. a3 {[%emt 0:01:24]} Bd6 {[%emt 0:02:05]} 15. O-O {[%emt 0:01:10]} Rde8 {[%emt 0:06:15] [#]} ({Black should try} 15... h5) 16. b4 $1 {[%emt 0:00:48][%mdl 512]} cxb4 {[%emt 0:01:03] [#]} (16... Rhf8 $16 {might work better.} 17. Rfb1 (17. b5 axb5 18. cxb5 Na5 $16) 17... e4) (16... h5 17. bxc5) 17. c5 $1 $18 {[%emt 0:01:45][%mdl 512]} Bc7 {[%emt 0:06:40] [#]} (17... Bxc5 18. Rfc1) 18. axb4 {[%emt 0:00:50]} Nxb4 {[%emt 0:02:18]} 19. Nc4 {[%emt 0:00:05]} Nfd5 {[%emt 0:04:41]} (19... Nbd5 $142 20. Qc2 Qc6) 20. Rfc1 {[%emt 0:00:59]} (20. Rfb1 $142) 20... Kb8 {[%emt 0:00:45]} (20... Re6 {is a better defense.} 21. Rcb1 Nc6) 21. Qe4 {[%emt 0:00:06]} (21. Rcb1 $18 {is the precise move to win. And now Ba3 would win.} Qb5 22. Qd2) 21... Qb5 $16 {[%emt 0:08:56][%cal Oe8d8]} 22. Rab1 {[%emt 0:02:05][%mdl 1024] aiming for Ba3. White has strong compensation.} ({Of course not} 22. Ba3 $6 Nc3 (22... Qxc5 $2 {loses.} 23. Bxb4 Qxb4 24. Qxd5 $18) 23. Rxc3 dxc3 $11) 22... Nf6 $2 {[%emt 0:01:26][%mdl 8192] This costs Black the game.} (22... a5 $16) 23. Qe2 {[%emt 0:00:16] Strongly threatening Ba3.} Nbd5 $2 {[%emt 0:04:10]} (23... e4 24. dxe4 (24. Bxd4 exd3 25. Qb2 Nfd5 $18) 24... d3) 24. Ba3 $18 {[%emt 0:01:58] White is clearly winning.} Qc6 {[%emt 0:00:01]} 25. Nd6 {[%emt 0:00:38]} Bxd6 {[%emt 0:00:19]} 26. cxd6 {[%emt 0:00:04][%cal Bc5d6,Bd6d7][%mdl 32]} Qa4 {[%emt 0:01:13]} 27. Qb2 {[%emt 0:00:34]} b5 {[%emt 0:00:30] [#]} 28. d7 $1 {[%emt 0:00:05][%mdl 512]} Re6 {[%emt 0:00:27] Dodges Bd6+} 29. Bh3 {[%emt 0:00:14] A strong pair of Bishops.} Rb6 {[%emt 0:00:34]} 30. Rc8+ {[%emt 0:00:07] Weighted Error Value: White=0.27 (precise) /Black=0.64.  Loses game:     	---       	Black=1      Missed win:     	White=1     	---        Mistake:       	White=1     	Black=6      OK:         	White=9     	Black=2      Best:        	White=1     	Black=2} 1-0

[Event "XTX Markets London Masters 2024"]
[Site "London"]
[Date "2024.11.29"]
[Round "1.6"]
[White "Manmay Chopra"]
[Black "Hera, Imre Jr."]
[Result "0-1"]
[ECO "B42"]
[WhiteElo "2217"]
[BlackElo "2522"]
[Annotator "TA"]
[PlyCount "70"]
[EventDate "2024.11.28"]
[EventType "swiss"]
[EventCountry "ENG"]
[SourceTitle "playchess.com"]
[Source "ChessBase"]
[SourceQuality "1"]
[TimeControl "40/5400+30:1800+30"]

{[%evp 25,70,0,14,0,28,22,16,20,28,29,52,33,52,-33,-39,-57,-56,-63,-54,-56,-70,-57,-48,-90,-83,-123,-118,-695,-407,-536,-523,-5381,-4806,-5110,-5010,-5513,-5506,-5422,-1025,-29990,-29991,-29991,-29992,-29992,-29993,-29993,-29994]} 1. Nf3 {[%emt 0:00:05]} c5 {[%emt 0:03:54]} 2. e4 {[%emt 0:00:08]} e6 {[%emt 0:00:10]} 3. d4 {[%emt 0:00:06]} cxd4 {[%emt 0:00:04]} 4. Nxd4 {[%emt 0:00:04]} a6 {[%emt 0:00:04]} 5. Bd3 {[%emt 0:00:47]} Bc5 {[%emt 0:00:15]} 6. Nb3 {[%emt 0:00:25]} Ba7 {[%emt 0:00:01]} 7. Qe2 {[%emt 0:00:10]} Nc6 {[%emt 0:00:25]} 8. Be3 {[%emt 0:01:00]} d6 {[%emt 0:00:50]} 9. Nc3 {[%emt 0:00:13]} b5 {[%emt 0:00:22][%cal Bb7b5,Bb5b4][%mdl 32]} 10. O-O {[%emt 0:02:39]} Nf6 {[%emt 0:00:21]} 11. a4 {[%emt 0:01:36]} b4 {[%emt 0:00:10]} 12. Nd1 {[%emt 0:00:12]} O-O {[%emt 0:18:24]} 13. Bxa7 {[%emt 0:09:45]} Rxa7 {[%emt 0:02:48]} 14. a5 {[%emt 0:01:15]} Qc7 {[%emt 0:21:25]} (14... Ne5 $5) 15. f4 {[%emt 0:16:33]} e5 {[%emt 0:01:37]} 16. f5 {[%emt 0:05:30] Inhibits Be6. The position is equal.} Nd4 {[%emt 0:08:18]} 17. Nxd4 {[%emt 0:00:37]} exd4 {[%emt 0:00:01]} 18. Nf2 {[%emt 0:01:15]} Qc5 {[%emt 0:03:34]} 19. Qf3 {[%emt 0:03:56]} ({But not} 19. Ng4 Nxg4 20. Qxg4 f6 $11) ({Better is} 19. Qd2 $1 $14) 19... Re7 $15 {[%emt 0:02:35]} 20. Ng4 {[%emt 0:11:59]} Nxg4 {[%emt 0:00:12]} 21. Qxg4 {[%emt 0:00:01]} f6 {[%emt 0:00:22]} 22. Rf3 {[%emt 0:10:18]} Bb7 {[%emt 0:00:36]} 23. Rg3 {[%emt 0:03:31]} Rc8 {[%emt 0:10:55]} 24. h4 {[%emt 0:02:37]} Qe5 {[%emt 0:00:52][%cal Rb7e4]} 25. Ra4 {[%emt 0:03:20]} h5 {[%emt 0:03:58]} 26. Qg6 {[%emt 0:04:02][%mdl 8192] [#] This move loses the game for White.} (26. Qf3 $17) 26... Bxe4 {[%emt 0:01:17]} 27. Bxe4 {[%emt 0:02:54]} Qxe4 {[%emt 0:00:02]} 28. Qxh5 {[%emt 0:01:10]} Rxc2 {[%emt 0:00:54]} 29. Ra1 {[%emt 0:04:23] Prevents Qe1+. White is weak on the dark squares} d3 {[%emt 0:01:05][%cal Od3d2] [#] ( -> ...d2!)} 30. Rd1 {[%emt 0:00:33]} d2 {[%emt 0:04:05]} 31. Kh2 {[%emt 0:00:02]} Qf4 {[%emt 0:02:02] Active counter play!} (31... Rc1 $142 32. Rxd2 Qe1) 32. Rf1 {[%emt 0:00:45]} Qxf1 {[%emt 0:00:57] Black mates.} 33. Rxg7+ {[%emt 0:00:04]} Kxg7 {[%emt 0:00:05]} 34. Qg6+ {[%emt 0:00:03]} Kf8 {[%emt 0:00:03]} 35. Qxf6+ {[%emt 0:00:06]} Ke8 {[%emt 0:00:02] Weighted Error Value: White=1.41/Black=0.49.  Loses game:     	White=1     	---        Mistake:       	White=1     	---        Inaccurate:     	White=4     	Black=2      OK:         	White=3     	Black=7} 0-1